[Event "Betsys MČR v online bleskovém šachu 2021"]
[Site "Chess.com"]
[Date "2021.04.17"]
[Round "9"]
[White "Jakuboss22005"]
[Black "kol340"]
[Result "1-0"]
[WhiteElo "2070"]
[BlackElo "1836"]
[TimeControl "180+1"]
[EndTime "10:33:11 PDT"]
[Termination "Uživatel Jakuboss22005 zvítězil matem"]

1. b3 {[%clk 0:02:52.4]} 1... c6 {[%clk 0:02:57.6]} 2. Bb2 {[%clk 0:02:53.3]}
2... d5 {[%clk 0:02:57.1]} 3. Nf3 {[%clk 0:02:51]} 3... Nf6 {[%clk 0:02:57.5]}
4. g3 {[%clk 0:02:51]} 4... Bf5 {[%clk 0:02:57.6]} 5. Bg2 {[%clk 0:02:51.3]}
5... Nbd7 {[%clk 0:02:58]} 6. O-O {[%clk 0:02:51.8]} 6... Qc7 {[%clk 0:02:57.1]}
7. d4 {[%clk 0:02:49.1]} 7... e6 {[%clk 0:02:57.5]} 8. c4 {[%clk 0:02:48.6]}
8... Rc8 {[%clk 0:02:53.1]} 9. Nc3 {[%clk 0:02:47.2]} 9... Be7 {[%clk
0:02:51.1]} 10. Bc1 {[%clk 0:02:42.3]} 10... O-O {[%clk 0:02:50.4]} 11. Bf4
{[%clk 0:02:41.9]} 11... Qa5 {[%clk 0:02:49.5]} 12. Bd2 {[%clk 0:02:31.2]} 12...
Bb4 {[%clk 0:02:48.1]} 13. Qc1 {[%clk 0:02:25.7]} 13... Ne4 {[%clk 0:02:41.5]}
14. Nxe4 {[%clk 0:02:23.8]} 14... Bxe4 {[%clk 0:02:38.8]} 15. Bxb4 {[%clk
0:02:23]} 15... Qxb4 {[%clk 0:02:39.7]} 16. a3 {[%clk 0:02:05.6]} 16... Qxb3
{[%clk 0:02:31.8]} 17. Nd2 {[%clk 0:01:58]} 17... Qc2 {[%clk 0:02:22.6]} 18.
Nxe4 {[%clk 0:01:48.4]} 18... Qxc1 {[%clk 0:02:21.1]} 19. Rfxc1 {[%clk
0:01:49.3]} 19... dxe4 {[%clk 0:02:21.4]} 20. Bxe4 {[%clk 0:01:50.2]} 20... Nf6
{[%clk 0:02:10.7]} 21. Bf3 {[%clk 0:01:47.6]} 21... b6 {[%clk 0:02:09.8]} 22. a4
{[%clk 0:01:39.1]} 22... c5 {[%clk 0:02:09.7]} 23. d5 {[%clk 0:01:36.2]} 23...
exd5 {[%clk 0:02:09.4]} 24. cxd5 {[%clk 0:01:36.7]} 24... Rfe8 {[%clk
0:01:55.8]} 25. Re1 {[%clk 0:01:26.5]} 25... Nd7 {[%clk 0:01:36.6]} 26. Bg4
{[%clk 0:01:18.9]} 26... Rcd8 {[%clk 0:01:35.4]} 27. Bxd7 {[%clk 0:01:14.1]}
27... Rxd7 {[%clk 0:01:36.3]} 28. Rad1 {[%clk 0:01:10.1]} 28... f5 {[%clk
0:01:35.8]} 29. f3 {[%clk 0:01:09]} 29... a6 {[%clk 0:01:28.2]} 30. Rb1 {[%clk
0:01:00.5]} 30... Rb8 {[%clk 0:01:19.9]} 31. e4 {[%clk 0:00:59.4]} 31... b5
{[%clk 0:01:19]} 32. Rec1 {[%clk 0:00:57.7]} 32... c4 {[%clk 0:01:16.9]} 33.
Rxc4 {[%clk 0:00:55.1]} 33... fxe4 {[%clk 0:01:00.4]} 34. fxe4 {[%clk
0:00:53.9]} 34... Kf7 {[%clk 0:01:00.3]} 35. axb5 {[%clk 0:00:51.9]} 35... axb5
{[%clk 0:01:00.3]} 36. Rcb4 {[%clk 0:00:51.7]} 36... Rdb7 {[%clk 0:00:59.8]} 37.
Kf2 {[%clk 0:00:51.6]} 37... Kf6 {[%clk 0:01:00.2]} 38. Ke3 {[%clk 0:00:51.8]}
38... Ke5 {[%clk 0:01:01.1]} 39. Rf1 {[%clk 0:00:50.7]} 39... g6 {[%clk
0:01:00.9]} 40. Rc1 {[%clk 0:00:47.1]} 40... Ra8 {[%clk 0:01:00.1]} 41. Rc5
{[%clk 0:00:32.5]} 41... Ra3+ {[%clk 0:00:59.4]} 42. Kd2 {[%clk 0:00:31.1]}
42... Ra2+ {[%clk 0:00:57.5]} 43. Rc2 {[%clk 0:00:30.7]} 43... Ra3 {[%clk
0:00:49.2]} 44. Rcb2 {[%clk 0:00:28.8]} 44... Rf7 {[%clk 0:00:47.9]} 45. Ke2
{[%clk 0:00:24.5]} 45... h5 {[%clk 0:00:42.5]} 46. Rd2 {[%clk 0:00:20.3]} 46...
Ra5 {[%clk 0:00:29.2]} 47. d6 {[%clk 0:00:19.9]} 47... Rd7 {[%clk 0:00:29]} 48.
Rbd4 {[%clk 0:00:19.5]} 48... Ra4 {[%clk 0:00:28.5]} 49. Rd5+ {[%clk 0:00:18.9]}
49... Ke6 {[%clk 0:00:28.4]} 50. Rxb5 {[%clk 0:00:16.8]} 50... Rxe4+ {[%clk
0:00:28.2]} 51. Kf3 {[%clk 0:00:17.1]} 51... Re5 {[%clk 0:00:26]} 52. Rb4 {[%clk
0:00:12.3]} 52... Rxd6 {[%clk 0:00:25.1]} 53. Rxd6+ {[%clk 0:00:11.5]} 53...
Kxd6 {[%clk 0:00:25.4]} 54. Rb6+ {[%clk 0:00:12.1]} 54... Ke7 {[%clk 0:00:23]}
55. Rxg6 {[%clk 0:00:12.6]} 55... Kf7 {[%clk 0:00:23.7]} 56. Ra6 {[%clk
0:00:11.6]} 56... Kg7 {[%clk 0:00:23.2]} 57. h3 {[%clk 0:00:09.6]} 57... Rb5
{[%clk 0:00:22.8]} 58. Kf4 {[%clk 0:00:08.7]} 58... Kh7 {[%clk 0:00:22.1]} 59.
g4 {[%clk 0:00:06.4]} 59... hxg4 {[%clk 0:00:23]} 60. hxg4 {[%clk 0:00:07.3]}
60... Kg7 {[%clk 0:00:23.5]} 61. Kg3 {[%clk 0:00:05.8]} 61... Kf7 {[%clk
0:00:23.5]} 62. Kh4 {[%clk 0:00:05.9]} 62... Kg7 {[%clk 0:00:24.4]} 63. g5
{[%clk 0:00:06]} 63... Kh7 {[%clk 0:00:24.1]} 64. Kh5 {[%clk 0:00:06.3]} 64...
Kg7 {[%clk 0:00:23.7]} 65. Ra7+ {[%clk 0:00:06.4]} 65... Kf8 {[%clk 0:00:22.2]}
66. Kh6 {[%clk 0:00:07]} 66... Rb1 {[%clk 0:00:21.2]} 67. Rc7 {[%clk 0:00:04.6]}
67... Rh1+ {[%clk 0:00:19.2]} 68. Kg6 {[%clk 0:00:04.8]} 68... Rd1 {[%clk
0:00:18.2]} 69. Rc8+ {[%clk 0:00:05.1]} 69... Ke7 {[%clk 0:00:18.1]} 70. Rc2
{[%clk 0:00:04.9]} 70... Rd6+ {[%clk 0:00:16.9]} 71. Kg7 {[%clk 0:00:04.9]}
71... Rd7 {[%clk 0:00:15.6]} 72. g6 {[%clk 0:00:03.3]} 72... Ke6+ {[%clk
0:00:15.2]} 73. Kh6 {[%clk 0:00:02.7]} 73... Kf5 {[%clk 0:00:15.5]} 74. Rf2+
{[%clk 0:00:02.3]} 74... Kg4 {[%clk 0:00:14.8]} 75. Rg2+ {[%clk 0:00:02.4]}
75... Kf5 {[%clk 0:00:14.1]} 76. g7 {[%clk 0:00:02.2]} 76... Rd6+ {[%clk
0:00:13.6]} 77. Kh7 {[%clk 0:00:02.8]} 77... Rd7 {[%clk 0:00:13.2]} 78. Kh8
{[%clk 0:00:03.3]} 78... Rd4 {[%clk 0:00:11.3]} 79. g8=Q {[%clk 0:00:03.6]}
79... Rh4+ {[%clk 0:00:11.4]} 80. Qh7+ {[%clk 0:00:04.2]} 80... Rxh7+ {[%clk
0:00:11.1]} 81. Kxh7 {[%clk 0:00:05.1]} 81... Kf4 {[%clk 0:00:12]} 82. Kh6
{[%clk 0:00:05.4]} 82... Kf3 {[%clk 0:00:12.8]} 83. Rg8 {[%clk 0:00:05.7]} 83...
Kf4 {[%clk 0:00:13.7]} 84. Kh5 {[%clk 0:00:06.5]} 84... Kf5 {[%clk 0:00:14.5]}
85. Rf8+ {[%clk 0:00:06.8]} 85... Ke6 {[%clk 0:00:14.7]} 86. Kg6 {[%clk
0:00:07.1]} 86... Ke7 {[%clk 0:00:15.6]} 87. Rf6 {[%clk 0:00:07.2]} 87... Kd7
{[%clk 0:00:15.7]} 88. Kf5 {[%clk 0:00:07.4]} 88... Ke7 {[%clk 0:00:16.6]} 89.
Ke5 {[%clk 0:00:07.7]} 89... Kd7 {[%clk 0:00:17.5]} 90. Re6 {[%clk 0:00:07.8]}
90... Kc7 {[%clk 0:00:17.6]} 91. Kd5 {[%clk 0:00:08.4]} 91... Kd7 {[%clk
0:00:18.3]} 92. Re4 {[%clk 0:00:07.7]} 92... Kc7 {[%clk 0:00:19.2]} 93. Re5
{[%clk 0:00:06.8]} 93... Kb6 {[%clk 0:00:20.1]} 94. Kc4 {[%clk 0:00:06.4]} 94...
Kc7 {[%clk 0:00:21]} 95. Re6 {[%clk 0:00:06.7]} 95... Kd7 {[%clk 0:00:21.1]} 96.
Rh6 {[%clk 0:00:06.3]} 96... Ke7 {[%clk 0:00:21]} 97. Kd5 {[%clk 0:00:06.6]}
97... Kf7 {[%clk 0:00:21.9]} 98. Ke5 {[%clk 0:00:06.9]} 98... Kg7 {[%clk
0:00:22.8]} 99. Ra6 {[%clk 0:00:06.3]} 99... Kf7 {[%clk 0:00:23.7]} 100. Rb6
{[%clk 0:00:05.8]} 100... Kg7 {[%clk 0:00:24.6]} 101. Kf5 {[%clk 0:00:05.9]}
101... Kf7 {[%clk 0:00:25.5]} 102. Rb7+ {[%clk 0:00:05.7]} 102... Ke8 {[%clk
0:00:25.4]} 103. Ke6 {[%clk 0:00:05.8]} 103... Kd8 {[%clk 0:00:25.7]} 104. Rh7
{[%clk 0:00:05.9]} 104... Kc8 {[%clk 0:00:26.6]} 105. Kd6 {[%clk 0:00:06.4]}
105... Kb8 {[%clk 0:00:27]} 106. Kc6 {[%clk 0:00:06.7]} 106... Kc8 {[%clk
0:00:27.5]} 107. Rh8# {[%clk 0:00:07.1]} 1-0

[Event "Betsys MČR v online bleskovém šachu 2021"]
[Site "Chess.com"]
[Date "2021.04.17"]
[Round "9"]
[White "vasekpaulus"]
[Black "prosinec"]
[Result "1/2-1/2"]
[WhiteElo "2052"]
[BlackElo "1761"]
[TimeControl "180+1"]
[EndTime "10:33:16 PDT"]
[Termination "Remíza opakováním pozice"]

1. e4 {[%clk 0:03:00.9]} 1... d6 {[%clk 0:02:54.8]} 2. Nf3 {[%clk 0:03:00.1]}
2... Bg4 {[%clk 0:02:53.3]} 3. h3 {[%clk 0:02:59.9]} 3... Bxf3 {[%clk
0:02:51.8]} 4. Qxf3 {[%clk 0:02:59.7]} 4... e5 {[%clk 0:02:50.9]} 5. c3 {[%clk
0:02:58.8]} 5... Nf6 {[%clk 0:02:49.6]} 6. Bc4 {[%clk 0:02:58.4]} 6... c5 {[%clk
0:02:48.7]} 7. d3 {[%clk 0:02:58.2]} 7... Nc6 {[%clk 0:02:48.7]} 8. a4 {[%clk
0:02:56.3]} 8... a5 {[%clk 0:02:48.1]} 9. O-O {[%clk 0:02:56.3]} 9... Be7 {[%clk
0:02:47.5]} 10. Na3 {[%clk 0:02:49.3]} 10... O-O {[%clk 0:02:45.7]} 11. Qe2
{[%clk 0:02:41.5]} 11... Qd7 {[%clk 0:02:44]} 12. Nb5 {[%clk 0:02:30.3]} 12...
Rac8 {[%clk 0:02:32.6]} 13. f4 {[%clk 0:02:29.8]} 13... exf4 {[%clk 0:02:30.6]}
14. Bxf4 {[%clk 0:02:29.3]} 14... Rfe8 {[%clk 0:02:22.4]} 15. Rf2 {[%clk
0:02:25.6]} 15... Bf8 {[%clk 0:02:12.8]} 16. Qf3 {[%clk 0:02:20.1]} 16... Ne5
{[%clk 0:02:07.7]} 17. Bxe5 {[%clk 0:02:19.7]} 17... dxe5 {[%clk 0:02:08.6]} 18.
g4 {[%clk 0:02:18.9]} 18... h6 {[%clk 0:02:06.5]} 19. Raf1 {[%clk 0:02:17]}
19... Re7 {[%clk 0:01:41.3]} 20. Rg2 {[%clk 0:02:16.5]} 20... Nh7 {[%clk
0:01:29.8]} 21. h4 {[%clk 0:02:15]} 21... Rc6 {[%clk 0:00:49.7]} 22. g5 {[%clk
0:01:53.2]} 22... Rg6 {[%clk 0:00:28.2]} 23. gxh6 {[%clk 0:01:51]} 23... Rxh6
{[%clk 0:00:25.1]} 24. h5 {[%clk 0:01:36.2]} 24... Nf6 {[%clk 0:00:22.8]} 25.
Rg5 {[%clk 0:01:07.9]} 25... Kh8 {[%clk 0:00:21.9]} 26. Rf2 {[%clk 0:01:01]}
26... Qc6 {[%clk 0:00:15.4]} 27. Rfg2 {[%clk 0:00:55.8]} 27... Nh7 {[%clk
0:00:14.6]} 28. R5g3 {[%clk 0:00:48.2]} 28... Qf6 {[%clk 0:00:14.5]} 29. Qe2
{[%clk 0:00:42.6]} 29... Qh4 {[%clk 0:00:11.8]} 30. Qf3 {[%clk 0:00:20.2]} 30...
Qxh5 {[%clk 0:00:08.9]} 31. Qxh5 {[%clk 0:00:19.9]} 31... Rxh5 {[%clk
0:00:09.8]} 32. Nd6 {[%clk 0:00:19.1]} 32... Rh6 {[%clk 0:00:09.1]} 33. Nxf7+
{[%clk 0:00:18.8]} 33... Rxf7 {[%clk 0:00:06.6]} 34. Bxf7 {[%clk 0:00:19.1]}
34... Be7 {[%clk 0:00:05.4]} 35. Bc4 {[%clk 0:00:17.2]} 35... Bf6 {[%clk
0:00:05.2]} 36. Rg6 {[%clk 0:00:17.1]} 36... Rxg6 {[%clk 0:00:02.2]} 37. Rxg6
{[%clk 0:00:17.1]} 37... Ng5 {[%clk 0:00:02.2]} 38. Bb5 {[%clk 0:00:10.5]} 38...
Kh7 {[%clk 0:00:02.2]} 39. Be8 {[%clk 0:00:10.4]} 39... Nh3+ {[%clk 0:00:01.1]}
40. Kg2 {[%clk 0:00:10.3]} 40... Nf4+ {[%clk 0:00:02]} 41. Kf3 {[%clk 0:00:10]}
41... Nxg6 {[%clk 0:00:02.9]} 42. Kg4 {[%clk 0:00:10.1]} 42... Nf8 {[%clk
0:00:02.5]} 43. Kf5 {[%clk 0:00:09.7]} 43... Kh8 {[%clk 0:00:03.4]} 44. c4
{[%clk 0:00:08.8]} 44... Nh7 {[%clk 0:00:04.3]} 45. Ke6 {[%clk 0:00:07.9]} 45...
Kg8 {[%clk 0:00:05.2]} 46. Kd7 {[%clk 0:00:07.8]} 46... Kf8 {[%clk 0:00:06.1]}
47. Bg6 {[%clk 0:00:07.6]} 47... Ng5 {[%clk 0:00:07]} 48. Kc7 {[%clk 0:00:05.8]}
48... Nh3 {[%clk 0:00:06.5]} 49. Kxb7 {[%clk 0:00:05.9]} 49... Nf4 {[%clk
0:00:06.2]} 50. Bf5 {[%clk 0:00:06.2]} 50... Nxd3 {[%clk 0:00:06.1]} 51. b3
{[%clk 0:00:04.4]} 51... Nb2 {[%clk 0:00:05.9]} 52. Kb6 {[%clk 0:00:04.1]} 52...
Kf7 {[%clk 0:00:05.5]} 53. Kxc5 {[%clk 0:00:03.7]} 53... g6 {[%clk 0:00:05.5]}
54. Bc8 {[%clk 0:00:03.5]} 54... Be7+ {[%clk 0:00:05]} 55. Kb5 {[%clk
0:00:03.5]} 55... Nd3 {[%clk 0:00:03.9]} 56. c5 {[%clk 0:00:03.8]} 56... Bxc5
{[%clk 0:00:02.6]} 57. Kxa5 {[%clk 0:00:04]} 57... Bb4+ {[%clk 0:00:03.5]} 58.
Kb5 {[%clk 0:00:04.2]} 58... Bd2 {[%clk 0:00:04.1]} 59. Kc4 {[%clk 0:00:04.4]}
59... Nf2 {[%clk 0:00:05]} 60. Bh3 {[%clk 0:00:04.6]} 60... Ba5 {[%clk
0:00:04.9]} 61. Bd7 {[%clk 0:00:04]} 61... Nxe4 {[%clk 0:00:04.6]} 62. Bc6
{[%clk 0:00:03.8]} 62... Nd6+ {[%clk 0:00:04.4]} 63. Kd5 {[%clk 0:00:03.1]}
63... Nf5 {[%clk 0:00:05.3]} 64. Kxe5 {[%clk 0:00:03.3]} 64... Bc7+ {[%clk
0:00:04.6]} 65. Ke4 {[%clk 0:00:03.4]} 65... Kf6 {[%clk 0:00:05.5]} 66. Kd3
{[%clk 0:00:03.4]} 66... Nd6 {[%clk 0:00:06.1]} 67. b4 {[%clk 0:00:03.5]} 67...
g5 {[%clk 0:00:07]} 68. b5 {[%clk 0:00:03.7]} 68... Ba5 {[%clk 0:00:05.4]} 69.
Bh1 {[%clk 0:00:03.6]} 69... Nc8 {[%clk 0:00:05.2]} 70. Kd4 {[%clk 0:00:03.9]}
70... Nb6 {[%clk 0:00:06.1]} 71. Kc5 {[%clk 0:00:04.2]} 71... Nxa4+ {[%clk
0:00:05.7]} 72. Kc6 {[%clk 0:00:03.7]} 72... Bb6 {[%clk 0:00:05.9]} 73. Kd5
{[%clk 0:00:03.3]} 73... Ba5 {[%clk 0:00:05.5]} 74. Kc4 {[%clk 0:00:03.4]} 74...
Nc3 {[%clk 0:00:04.4]} 75. b6 {[%clk 0:00:02.8]} 75... Bxb6 {[%clk 0:00:03.9]}
76. Kxc3 {[%clk 0:00:03]} 76... Kf5 {[%clk 0:00:04.8]} 77. Kd3 {[%clk
0:00:03.4]} 77... Kf4 {[%clk 0:00:05.1]} 78. Ke2 {[%clk 0:00:03.9]} 78... g4
{[%clk 0:00:05.2]} 79. Kf1 {[%clk 0:00:04.4]} 79... g3 {[%clk 0:00:05.8]} 80.
Bg2 {[%clk 0:00:05.3]} 80... Bf2 {[%clk 0:00:06.3]} 81. Bd5 {[%clk 0:00:05.4]}
81... Kg4 {[%clk 0:00:07.1]} 82. Bg2 {[%clk 0:00:06.3]} 82... Kg5 {[%clk
0:00:07.2]} 83. Bd5 {[%clk 0:00:06.7]} 83... Kf6 {[%clk 0:00:07.2]} 84. Bg2
{[%clk 0:00:07.6]} 84... Ke7 {[%clk 0:00:07.8]} 85. Bf3 {[%clk 0:00:08.1]} 85...
Kd6 {[%clk 0:00:07.6]} 86. Kg2 {[%clk 0:00:09]} 86... Ke5 {[%clk 0:00:08]} 87.
Be2 {[%clk 0:00:09.1]} 87... Kd6 {[%clk 0:00:08.9]} 88. Bf1 {[%clk 0:00:09.6]}
88... Ke7 {[%clk 0:00:08.8]} 89. Be2 {[%clk 0:00:07.1]} 89... Kd6 {[%clk
0:00:09.4]} 90. Bf3 {[%clk 0:00:07]} 90... Ke5 {[%clk 0:00:10.3]} 91. Be2 {[%clk
0:00:06.5]} 91... Kd6 {[%clk 0:00:11.2]} 1/2-1/2

[Event "Betsys MČR v online bleskovém šachu 2021"]
[Site "Chess.com"]
[Date "2021.04.17"]
[Round "10"]
[White "Trener-Pokrocili"]
[Black "fm_magua"]
[Result "1-0"]
[WhiteElo "2275"]
[BlackElo "2508"]
[TimeControl "180+1"]
[EndTime "10:35:38 PDT"]
[Termination "Uživatel Trener-Pokrocili zvítězil po vzdání soupeře"]

1. Nf3 {[%clk 0:03:00.9]} 1... c5 {[%clk 0:02:59.2]} 2. c4 {[%clk 0:02:56.9]}
2... Nc6 {[%clk 0:02:59.5]} 3. Nc3 {[%clk 0:02:53.7]} 3... g6 {[%clk 0:03:00]}
4. e3 {[%clk 0:02:52.8]} 4... Bg7 {[%clk 0:03:00.5]} 5. d4 {[%clk 0:02:52.5]}
5... d6 {[%clk 0:03:00.2]} 6. dxc5 {[%clk 0:02:38.3]} 6... dxc5 {[%clk
0:03:00.2]} 7. Qxd8+ {[%clk 0:02:37.7]} 7... Nxd8 {[%clk 0:03:00.6]} 8. Bd2
{[%clk 0:02:28.2]} 8... Be6 {[%clk 0:02:56]} 9. O-O-O {[%clk 0:02:21.2]} 9...
Nc6 {[%clk 0:02:56.3]} 10. Ng5 {[%clk 0:02:12.7]} 10... Bd7 {[%clk 0:02:56.5]}
11. Nd5 {[%clk 0:02:04]} 11... O-O-O {[%clk 0:02:55.5]} 12. Nxf7 {[%clk
0:01:57.1]} 12... e6 {[%clk 0:02:52.7]} 13. Bc3 {[%clk 0:01:40.7]} 1-0

[Event "Betsys MČR v online bleskovém šachu 2021"]
[Site "Chess.com"]
[Date "2021.04.17"]
[Round "10"]
[White "Vojta0007"]
[Black "HerjoAnpe"]
[Result "0-1"]
[WhiteElo "1454"]
[BlackElo "1263"]
[TimeControl "180+1"]
[EndTime "10:35:46 PDT"]
[Termination "Uživatel HerjoAnpe zvítězil matem"]

1. d4 {[%clk 0:03:00.9]} 1... c5 {[%clk 0:02:58.7]} 2. d5 {[%clk 0:02:59.3]}
2... e6 {[%clk 0:02:58.4]} 3. c4 {[%clk 0:02:58.3]} 3... exd5 {[%clk 0:02:57.5]}
4. cxd5 {[%clk 0:02:57.7]} 4... Nf6 {[%clk 0:02:57.6]} 5. Nc3 {[%clk 0:02:56.9]}
5... c4 {[%clk 0:02:56.6]} 6. e4 {[%clk 0:02:55.4]} 6... Bb4 {[%clk 0:02:52.4]}
7. Qc2 {[%clk 0:02:51.4]} 7... O-O {[%clk 0:02:47.9]} 8. Bxc4 {[%clk 0:02:47.1]}
8... Re8 {[%clk 0:02:41.8]} 9. Bd3 {[%clk 0:02:45.3]} 9... Qb6 {[%clk
0:02:32.8]} 10. Be3 {[%clk 0:02:35.7]} 10... Bc5 {[%clk 0:02:29.3]} 11. Bxc5
{[%clk 0:02:23.3]} 11... Qxc5 {[%clk 0:02:28.6]} 12. Nge2 {[%clk 0:02:21.5]}
12... Ng4 {[%clk 0:02:25.3]} 13. O-O {[%clk 0:02:18.1]} 13... Qd6 {[%clk
0:02:21]} 14. Nb5 {[%clk 0:02:05.7]} 14... Qxh2# {[%clk 0:02:19.6]} 0-1

[Event "Betsys MČR v online bleskovém šachu 2021"]
[Site "Chess.com"]
[Date "2021.04.17"]
[Round "10"]
[White "Lipican"]
[Black "Countryside_58"]
[Result "0-1"]
[WhiteElo "2108"]
[BlackElo "2409"]
[TimeControl "180+1"]
[EndTime "10:35:55 PDT"]
[Termination "Uživatel Countryside_58 zvítězil po vzdání soupeře"]

1. d4 {[%clk 0:02:56.3]} 1... d5 {[%clk 0:02:58.2]} 2. Nf3 {[%clk 0:02:55.3]}
2... Nc6 {[%clk 0:02:59.1]} 3. c4 {[%clk 0:02:53.3]} 3... e5 {[%clk 0:02:57.2]}
4. cxd5 {[%clk 0:02:47.3]} 4... Qxd5 {[%clk 0:02:56.9]} 5. Nc3 {[%clk
0:02:46.6]} 5... Bb4 {[%clk 0:02:57.5]} 6. Bd2 {[%clk 0:02:41.4]} 6... Bxc3
{[%clk 0:02:57.4]} 7. Bxc3 {[%clk 0:02:40.6]} 7... e4 {[%clk 0:02:57.4]} 8. Ne5
{[%clk 0:02:39.8]} 8... e3 {[%clk 0:02:57.3]} 9. Nxc6 {[%clk 0:02:34.9]} 9...
exf2+ {[%clk 0:02:56.2]} 10. Kxf2 {[%clk 0:02:34.7]} 10... bxc6 {[%clk 0:02:57]}
11. Qd3 {[%clk 0:02:28.2]} 11... Nf6 {[%clk 0:02:49.5]} 12. e3 {[%clk
0:02:24.2]} 12... Bf5 {[%clk 0:02:46.9]} 13. Qd1 {[%clk 0:02:14.7]} 13... Ng4+
{[%clk 0:02:41.5]} 14. Ke2 {[%clk 0:02:12.5]} 14... Qe4 {[%clk 0:02:22.2]} 15.
Qc1 {[%clk 0:02:04.1]} 15... O-O {[%clk 0:02:19.9]} 0-1

[Event "Betsys MČR v online bleskovém šachu 2021"]
[Site "Chess.com"]
[Date "2021.04.17"]
[Round "10"]
[White "Tynano"]
[Black "Tobish"]
[Result "1-0"]
[WhiteElo "1955"]
[BlackElo "1678"]
[TimeControl "180+1"]
[EndTime "10:36:01 PDT"]
[Termination "Uživatel Tynano zvítězil po vzdání soupeře"]

1. e4 {[%clk 0:03:00.9]} 1... c5 {[%clk 0:02:59.5]} 2. Nf3 {[%clk 0:03:00.6]}
2... Nc6 {[%clk 0:02:59.1]} 3. d4 {[%clk 0:03:00.8]} 3... cxd4 {[%clk
0:02:58.9]} 4. Nxd4 {[%clk 0:03:01.7]} 4... Nf6 {[%clk 0:02:59.3]} 5. Nc3 {[%clk
0:03:02]} 5... g6 {[%clk 0:02:59.2]} 6. Be3 {[%clk 0:03:00.7]} 6... Bg7 {[%clk
0:02:59.5]} 7. Bc4 {[%clk 0:03:00.7]} 7... d6 {[%clk 0:02:58.1]} 8. f3 {[%clk
0:03:00.7]} 8... Bd7 {[%clk 0:02:57.7]} 9. Qd2 {[%clk 0:03:00.8]} 9... Rc8
{[%clk 0:02:57.7]} 10. Bb3 {[%clk 0:03:00.5]} 10... Na5 {[%clk 0:02:54.4]} 11.
O-O-O {[%clk 0:02:55.9]} 11... Nc4 {[%clk 0:02:53.7]} 12. Bxc4 {[%clk
0:02:56.3]} 12... Rxc4 {[%clk 0:02:53.9]} 13. g4 {[%clk 0:02:56.2]} 13... a6
{[%clk 0:02:50.7]} 14. h4 {[%clk 0:02:55.8]} 14... b5 {[%clk 0:02:50.9]} 15. h5
{[%clk 0:02:44.4]} 15... b4 {[%clk 0:02:49.7]} 16. Nce2 {[%clk 0:02:44.3]} 16...
Qa5 {[%clk 0:02:46.5]} 17. Kb1 {[%clk 0:02:43.7]} 17... Qc7 {[%clk 0:02:34.7]}
18. h6 {[%clk 0:02:39.7]} 18... Bf8 {[%clk 0:02:32.2]} 19. g5 {[%clk 0:02:39.8]}
19... Nh5 {[%clk 0:02:31.5]} 20. Rxh5 {[%clk 0:02:37.9]} 20... gxh5 {[%clk
0:02:31.4]} 21. Nf4 {[%clk 0:02:38.2]} 21... e6 {[%clk 0:02:18.3]} 22. Nxh5
{[%clk 0:02:37.1]} 22... Be7 {[%clk 0:02:17.2]} 23. Ng7+ {[%clk 0:02:32.9]}
23... Kd8 {[%clk 0:02:14.5]} 24. f4 {[%clk 0:02:32.5]} 24... e5 {[%clk
0:02:11.1]} 25. fxe5 {[%clk 0:02:30.9]} 25... dxe5 {[%clk 0:02:11.1]} 26. Nde6+
{[%clk 0:02:31.2]} 1-0

[Event "Betsys MČR v online bleskovém šachu 2021"]
[Site "Chess.com"]
[Date "2021.04.17"]
[Round "10"]
[White "pa9p"]
[Black "kubajss"]
[Result "1-0"]
[WhiteElo "1763"]
[BlackElo "907"]
[TimeControl "180+1"]
[EndTime "10:36:10 PDT"]
[Termination "Uživatel pa9p zvítězil po vzdání soupeře"]

1. e4 {[%clk 0:03:00.9]} 1... e5 {[%clk 0:03:00]} 2. Nf3 {[%clk 0:02:59.9]} 2...
Nc6 {[%clk 0:03:00.2]} 3. d4 {[%clk 0:03:00.1]} 3... exd4 {[%clk 0:02:56.8]} 4.
Nxd4 {[%clk 0:03:00.2]} 4... Nxd4 {[%clk 0:02:57]} 5. Qxd4 {[%clk 0:03:00.4]}
5... d6 {[%clk 0:02:48.3]} 6. Nc3 {[%clk 0:03:00]} 6... Qe7 {[%clk 0:02:29.2]}
7. Bc4 {[%clk 0:02:59]} 7... Nf6 {[%clk 0:02:27.4]} 8. O-O {[%clk 0:02:57.9]}
8... Be6 {[%clk 0:02:23.7]} 9. Nd5 {[%clk 0:02:50.5]} 9... Nxd5 {[%clk
0:02:10.8]} 10. exd5 {[%clk 0:02:49.5]} 10... Bf5 {[%clk 0:01:53.8]} 11. Bd2
{[%clk 0:02:43.8]} 11... a6 {[%clk 0:01:51]} 12. Rfe1 {[%clk 0:02:32.6]} 12...
Be6 {[%clk 0:01:43.2]} 13. dxe6 {[%clk 0:02:31]} 13... fxe6 {[%clk 0:01:42.4]}
14. Rxe6 {[%clk 0:02:30.2]} 14... Qxe6 {[%clk 0:01:38.1]} 15. Bxe6 {[%clk
0:02:29.9]} 1-0

[Event "Betsys MČR v online bleskovém šachu 2021"]
[Site "Chess.com"]
[Date "2021.04.17"]
[Round "10"]
[White "OndrejBorkovec"]
[Black "pavelchrz"]
[Result "1-0"]
[WhiteElo "1518"]
[BlackElo "1661"]
[TimeControl "180+1"]
[EndTime "10:36:11 PDT"]
[Termination "Uživatel OndrejBorkovec zvítězil po vzdání soupeře"]

1. c4 {[%clk 0:03:00.9]} 1... g6 {[%clk 0:02:59]} 2. d4 {[%clk 0:03:00.5]} 2...
Bg7 {[%clk 0:02:59]} 3. Nc3 {[%clk 0:03:00.8]} 3... c5 {[%clk 0:02:58.6]} 4. Nf3
{[%clk 0:02:54.1]} 4... cxd4 {[%clk 0:02:56.6]} 5. Nxd4 {[%clk 0:02:53.7]} 5...
Nc6 {[%clk 0:02:57.2]} 6. Nxc6 {[%clk 0:02:50.3]} 6... bxc6 {[%clk 0:02:56.5]}
7. Qc2 {[%clk 0:02:50.2]} 7... Nf6 {[%clk 0:02:56.7]} 8. Bf4 {[%clk 0:02:49.7]}
8... d6 {[%clk 0:02:56.3]} 9. g3 {[%clk 0:02:49.1]} 9... Bf5 {[%clk 0:02:54.9]}
10. Qd2 {[%clk 0:02:45.5]} 10... O-O {[%clk 0:02:52.8]} 11. Bg2 {[%clk
0:02:45.5]} 11... Qd7 {[%clk 0:02:50.4]} 12. O-O {[%clk 0:02:44.7]} 12... Bh3
{[%clk 0:02:49.5]} 13. Bh6 {[%clk 0:02:42.3]} 13... Rab8 {[%clk 0:02:37.4]} 14.
b3 {[%clk 0:02:40.8]} 14... Rfe8 {[%clk 0:02:09.2]} 15. Bxg7 {[%clk 0:02:28]}
15... Kxg7 {[%clk 0:02:08.9]} 16. e3 {[%clk 0:02:28]} 16... Qg4 {[%clk
0:02:00.9]} 17. Rfd1 {[%clk 0:02:21.3]} 17... Bxg2 {[%clk 0:01:58.5]} 18. Kxg2
{[%clk 0:02:21.1]} 18... Ne4 {[%clk 0:01:57.7]} 19. Nxe4 {[%clk 0:02:20.2]}
19... Qf4 {[%clk 0:01:57.7]} 20. exf4 {[%clk 0:02:19.1]} 1-0